bitfinex-derivatives/quotes_BTCF0:USTF0_20250514
["timestamp","ask_amount","ask_price","bid_price","bid_amount"]
[1747263100923,0.7043397,103550.0,103540.0,0.54789006]
[1747263101126,0.7344397,103550.0,103540.0,0.54789006]
[1747263101634,0.74431446,103550.0,103540.0,0.90869006]
[1747263101929,0.74431446,103550.0,103540.0,0.99567698]
[1747263102136,0.7344397,103550.0,103540.0,0.99567698]
[1747263104136,0.334,103550.0,103540.0,1.0826639]
[1747263104330,0.004,103550.0,103540.0,1.1792399]
[1747263104532,0.1970951,103550.0,103540.0,1.1792399]
[1747263105138,0.004,103550.0,103540.0,1.1792399]
[1747263105337,0.1970951,103550.0,103540.0,1.1792399]
[1747263105741,0.004,103550.0,103540.0,1.1792399]
[1747263105927,0.002,103550.0,103540.0,1.26622682]
[1747263106239,0.002,103550.0,103540.0,1.51622682]
[1747263106427,0.002,103560.0,103550.0,0.1930951]
[1747263106632,0.002,103560.0,103550.0,1.12966202]
[1747263106838,0.002,103560.0,103550.0,1.56321694]
[1747263107028,0.002,103560.0,103550.0,1.65978398]
[1747263107342,0.002,103560.0,103550.0,1.91297556]
[1747263107632,0.002,103560.0,103550.0,1.91397556]
[1747263108739,0.002,103560.0,103550.0,1.91497556]
[1747263110542,0.002,103560.0,103550.0,1.92059627]
[1747263110736,0.002,103560.0,103550.0,1.78801356]
[1747263111036,0.002,103560.0,103550.0,1.57421356]
[1747263111242,0.002,103560.0,103550.0,1.53801356]
[1747263118038,0.1950764,103560.0,103550.0,1.44076556]
[1747263118345,0.2589764,103560.0,103550.0,1.22760556]
[1747263118545,0.25574896,103560.0,103550.0,1.22760556]
[1747263118839,0.25574896,103560.0,103550.0,1.22391619]
[1747263120744,0.25574896,103560.0,103550.0,1.01047619]
[1747263121671,0.25574896,103560.0,103550.0,0.97927619]
[1747263121904,0.25574896,103560.0,103550.0,0.84669348]
[1747263122164,0.26574896,103560.0,103550.0,0.81727619]
[1747263124767,0.26574896,103560.0,103550.0,0.81527619]
[1747263126078,0.25574896,103560.0,103550.0,0.81527619]
[1747263126263,0.25574896,103560.0,103550.0,0.84607619]
[1747263127746,0.25574896,103560.0,103550.0,0.8516969]
[1747263128146,0.25574896,103560.0,103550.0,1.0136969]
[1747263128951,0.25574896,103560.0,103550.0,1.00807619]
[1747263129458,0.25574896,103560.0,103550.0,1.15580804]
[1747263129851,0.25574896,103560.0,103550.0,0.79500804]
[1747263130055,0.25574896,103560.0,103550.0,1.15580804]
[1747263130453,0.25574896,103560.0,103550.0,0.63162533]
[1747263130851,0.25574896,103560.0,103550.0,0.99242533]
[1747263132157,0.25574896,103560.0,103550.0,0.83042533]
[1747263132542,0.25574896,103560.0,103550.0,0.96300804]
[1747263132743,0.0639,103560.0,103550.0,0.99510804]
[1747263132944,0.0332,103560.0,103550.0,0.99510804]
[1747263133151,0.0646,103570.0,103560.0,0.1930764]
[1747263133357,0.0957,103570.0,103560.0,0.91454182]
[1747263133759,0.0957,103570.0,103560.0,1.01110886]
[1747263133950,0.2887578,103570.0,103560.0,1.01110886]
[1747263134265,0.2887578,103570.0,103560.0,1.25328615]
[1747263136366,0.0957,103570.0,103560.0,1.59784971]
[1747263136559,0.2887578,103570.0,103560.0,1.59784971]
[1747263137469,0.2887578,103570.0,103560.0,1.465267]
[1747263137654,0.2887578,103570.0,103560.0,1.59784971]
[1747263138660,0.2887578,103570.0,103560.0,3.09784971]
[1747263138842,0.00144929,103580.0,103570.0,0.1930578]
[1747263139045,0.27599199,103580.0,103570.0,0.74794051]
[1747263139490,0.27599199,103580.0,103570.0,0.84449822]
[1747263140078,0.31019199,103580.0,103570.0,0.84449822]
[1747263140266,0.31119199,103580.0,103570.0,0.84449822]
[1747263141568,0.59119199,103580.0,103570.0,0.68041551]
[1747263141770,0.95199199,103580.0,103570.0,0.31961551]
[1747263142264,0.75319199,103580.0,103570.0,0.31961551]
[1747263143053,0.75319199,103580.0,103570.0,0.46734736]
[1747263143258,0.59119199,103580.0,103570.0,0.46734736]
[1747263143759,0.95199199,103580.0,103570.0,0.46734736]
[1747263144057,0.65199199,103580.0,103570.0,0.46734736]
[1747263146261,0.81399199,103580.0,103570.0,0.46734736]
[1747263146461,0.81399199,103580.0,103570.0,0.31961551]
[1747263147253,0.65199199,103580.0,103570.0,0.31961551]
[1747263148558,0.65199199,103580.0,103570.0,0.34971551]
[1747263149060,0.29119199,103580.0,103570.0,0.34971551]
[1747263149267,0.65199199,103580.0,103570.0,0.34971551]
[1747263150763,0.65199199,103580.0,103570.0,0.31961551]
[1747263153269,0.6505427,103580.0,103570.0,0.31961551]
[1747263153476,0.2897427,103580.0,103570.0,0.48359822]
[1747263153661,0.2897427,103580.0,103570.0,0.51579822]
[1747263155260,0.2897427,103580.0,103570.0,0.38321551]
[1747263157872,0.2897427,103580.0,103570.0,0.51579822]
[1747263158561,0.2897427,103580.0,103570.0,0.38321551]
[1747263163375,0.2897427,103580.0,103570.0,0.51579822]
[1747263165379,0.2897427,103580.0,103570.0,0.47024004]
[1747263166176,0.2897427,103580.0,103570.0,0.38321551]
[1747263166570,0.2897427,103580.0,103570.0,0.47024004]
[1747263170474,0.2897427,103580.0,103570.0,0.38321551]
[1747263170676,0.2897427,103580.0,103570.0,0.47024004]
[1747263172880,0.2897427,103580.0,103570.0,0.38321551]
[1747263173475,0.2897427,103580.0,103570.0,0.35101551]
[1747263175879,0.6505427,103580.0,103570.0,0.35101551]
[1747263179783,0.6505427,103580.0,103570.0,0.38241551]
[1747263182979,0.2897427,103580.0,103570.0,0.38241551]
[1747263183181,0.6505427,103580.0,103570.0,0.38241551]
[1747263187090,0.2897427,103580.0,103570.0,0.38241551]
[1747263187292,0.6505427,103580.0,103570.0,0.38241551]
[1747263188697,0.6505427,103580.0,103570.0,0.38803622]
[1747263189096,0.6505427,103580.0,103570.0,0.55003622]
[1747263194697,0.73756723,103580.0,103570.0,0.29417842]
[1747263194907,0.73756723,103580.0,103570.0,0.19762071]
[1747263195198,0.73756723,103580.0,103570.0,0.03562071]
[1747263195802,0.73756723,103580.0,103570.0,0.03]
[1747263196001,0.73756723,103580.0,103560.0,0.37776356]
[1747263196002,0.1930578,103570.0,103560.0,0.37776356]
[1747263196186,0.73598233,103570.0,103560.0,0.60263996]
[1747263196387,1.16030233,103570.0,103560.0,0.69918835]
[1747263198002,1.0732778,103570.0,103560.0,0.78621288]
[1747263198299,1.0742778,103570.0,103560.0,0.81821288]
[1747263198486,0.2891578,103570.0,103560.0,0.81821288]
[1747263199100,0.2891578,103570.0,103560.0,0.98021288]
[1747263199404,0.2911578,103570.0,103560.0,0.98021288]
[1747263199901,0.2911578,103570.0,103560.0,0.98583359]
[1747263200503,0.2911578,103570.0,103560.0,0.64127003]
[1747263201500,0.6519578,103570.0,103560.0,0.5542455]
[1747263201800,0.2911578,103570.0,103560.0,0.5542455]
[1747263202002,0.8635978,103570.0,103560.0,0.5542455]
[1747263202202,0.8635978,103570.0,103560.0,0.3922455]
[1747263203207,0.8635978,103570.0,103560.0,0.5542455]
[1747263204099,0.5027978,103570.0,103560.0,0.5542455]
[1747263204298,0.8635978,103570.0,103560.0,0.5542455]
[1747263205202,0.95062233,103570.0,103560.0,0.5542455]
[1747263206997,0.58982233,103570.0,103560.0,0.5542455]
[1747263207203,0.95062233,103570.0,103560.0,0.5542455]
[1747263207898,0.95062233,103570.0,103560.0,0.2959691]
[1747263208103,0.95062233,103570.0,103560.0,0.32142479]
[1747263208692,0.95062233,103570.0,103560.0,0.0318]
[1747263209107,0.95062233,103570.0,103560.0,0.03742071]
[1747263210011,0.95062233,103570.0,103560.0,0.0318]
[1747263211001,0.95062233,103570.0,103560.0,0.03742071]
[1747263212104,0.95062233,103570.0,103560.0,0.0318]
[1747263215207,0.95062233,103570.0,103560.0,0.03742071]
[1747263216802,0.95062233,103570.0,103560.0,0.23049711]
[1747263217309,0.95062233,103570.0,103560.0,0.29489711]
[1747263217903,0.94926233,103570.0,103560.0,0.03742071]
[1747263218110,0.73898233,103570.0,103560.0,0.00562071]
[1747263218294,1.15958233,103570.0,103560.0,0.00562071]
[1747263219305,0.1930764,103560.0,103550.0,0.25922364]
[1747263219610,0.73540093,103560.0,103550.0,0.35578135]
[1747263220109,0.73540093,103560.0,103550.0,0.51778135]
[1747263220608,0.73540093,103560.0,103550.0,0.32468905]
[1747263221310,0.73540093,103560.0,103550.0,0.29218905]
[1747263221704,0.73540093,103560.0,103550.0,0.19563134]
[1747263221908,0.82242546,103560.0,103550.0,0.19563134]
[1747263222107,0.82342546,103560.0,103550.0,0.03363134]
[1747263222411,0.73840093,103560.0,103550.0,0.03925205]
[1747263223013,0.73740093,103560.0,103550.0,0.03925205]
[1747263223213,0.74040093,103560.0,103550.0,0.03363134]
[1747263223604,0.82742546,103560.0,103550.0,0.03363134]
[1747263224512,0.74140093,103560.0,103550.0,0.03363134]
[1747263225815,0.82842546,103560.0,103550.0,0.03363134]
[1747263226514,0.82842546,103560.0,103550.0,0.00193134]
[1747263227117,0.99042546,103560.0,103550.0,0.00193134]
[1747263228317,0.82842546,103560.0,103550.0,0.00755205]
[1747263229415,0.82842546,103560.0,103550.0,0.00193134]
[1747263230318,0.82842546,103560.0,103550.0,0.03955205]
[1747263230618,0.6543764,103560.0,103550.0,0.03955205]
[1747263230917,0.82842546,103560.0,103550.0,0.03955205]
[1747263233417,0.82842546,103560.0,103550.0,0.03393134]
[1747263236423,0.82842546,103560.0,103550.0,0.03955205]
[1747263237504,0.82842546,103560.0,103550.0,0.03393134]
[1747263237915,0.92499346,103560.0,103550.0,0.00193134]
[1747263239321,0.92499346,103560.0,103550.0,0.03403134]
[1747263240525,0.92499346,103560.0,103550.0,0.03965205]
[1747263241524,0.82842546,103560.0,103550.0,0.03965205]
[1747263242532,0.82842546,103560.0,103550.0,0.03403134]
[1747263243524,0.82842546,103560.0,103550.0,0.03965205]
[1747263244325,0.95036093,103560.0,103550.0,0.03965205]
[1747263244526,0.95036093,103560.0,103550.0,0.10325205]
[1747263244527,0.6543764,103560.0,103550.0,0.10325205]
[1747263244716,1.16064093,103560.0,103550.0,0.10325205]
[1747263245124,1.16064093,103560.0,103550.0,0.26525205]
[1747263246228,1.0736164,103560.0,103550.0,0.26525205]
[1747263246438,1.16064093,103560.0,103550.0,0.26525205]
[1747263248323,1.24766546,103560.0,103550.0,0.26525205]
[1747263248832,1.0102764,103560.0,103550.0,0.26525205]
[1747263249130,1.0102764,103560.0,103550.0,0.45834715]
[1747263249324,1.0102364,103560.0,103550.0,0.45834715]
[1747263250329,1.09726093,103560.0,103550.0,0.26525205]
[1747263250519,1.09726093,103560.0,103550.0,0.45834715]
[1747263250719,1.06586093,103560.0,103550.0,0.36181909]
[1747263251121,1.09736093,103560.0,103550.0,0.36181909]
[1747263256925,1.12816093,103560.0,103550.0,0.36181909]
[1747263257628,1.0411364,103560.0,103550.0,0.36181909]
[1747263257823,1.12816093,103560.0,103550.0,0.36181909]
[1747263262238,1.16036093,103560.0,103550.0,0.36181909]
[1747263262742,1.0733364,103560.0,103550.0,0.36181909]
[1747263263041,1.16036093,103560.0,103550.0,0.36181909]
[1747263265937,1.24738546,103560.0,103550.0,0.32941909]
[1747263266143,1.24738546,103560.0,103550.0,0.03965205]
[1747263266737,1.60738546,103560.0,103550.0,0.03965205]
[1747263266929,1.60738546,103560.0,103550.0,0.03403134]
[1747263267330,1.69440999,103560.0,103550.0,0.00193134]
[1747263267639,2.37480999,103560.0,103550.0,4e-08]
[1747263267829,2.28778546,103560.0,103550.0,4e-08]
[1747263270139,2.44978546,103560.0,103550.0,4e-08]
[1747263271337,2.81058546,103560.0,103550.0,4e-08]
[1747263272139,2.64858546,103560.0,103550.0,4e-08]
[1747263272558,1.96818546,103560.0,103550.0,4e-08]
[1747263274057,1.96818546,103560.0,103550.0,0.00562075]
[1747263275352,1.54922546,103560.0,103550.0,0.00562075]
[1747263275559,1.96702546,103560.0,103550.0,0.00562075]
[1747263275758,1.7929364,103560.0,103550.0,0.00562075]
[1747263275958,1.46220093,103560.0,103550.0,0.06892075]
[1747263276155,1.46220093,103560.0,103550.0,0.23092075]
[1747263276357,1.87996093,103560.0,103550.0,0.23092075]
[1747263278864,1.96698546,103560.0,103550.0,0.23092075]
[1747263279164,1.96698546,103560.0,103550.0,0.06892075]
[1747263279564,1.60698546,103560.0,103550.0,0.06892075]
[1747263280165,1.60698546,103560.0,103550.0,0.23092075]
[1747263289768,0.88538546,103560.0,103550.0,0.23092075]
[1747263289960,1.60698546,103560.0,103550.0,0.23092075]
[1747263290268,1.60698546,103560.0,103550.0,0.26092075]
[1747263290767,0.88538546,103560.0,103550.0,0.26092075]
[1747263290964,1.4329364,103560.0,103550.0,0.26092075]
[1747263291152,1.60698546,103560.0,103550.0,0.26092075]
[1747263295471,1.51996093,103560.0,103550.0,0.26092075]
[1747263304278,0.79836093,103560.0,103550.0,0.26092075]
[1747263304480,1.51996093,103560.0,103550.0,0.26092075]
[1747263308382,0.79836093,103560.0,103550.0,0.26092075]
[1747263308580,1.51996093,103560.0,103550.0,0.26092075]
[1747263314387,1.4329364,103560.0,103550.0,0.26092075]
[1747263314589,1.51996093,103560.0,103550.0,0.26092075]
[1747263317292,0.79836093,103560.0,103550.0,0.26092075]
[1747263317494,1.51996093,103560.0,103550.0,0.26092075]
[1747263322284,0.79836093,103560.0,103550.0,0.26092075]
[1747263322485,1.51996093,103560.0,103550.0,0.26092075]
[1747263336406,0.79836093,103560.0,103550.0,0.26092075]
[1747263336704,1.51996093,103560.0,103550.0,0.26092075]
[1747263337308,1.4329364,103560.0,103550.0,0.26092075]
[1747263337493,0.6543764,103560.0,103550.0,0.26092075]
[1747263337804,1.0684964,103560.0,103550.0,0.26092075]
[1747263337995,1.15552093,103560.0,103550.0,0.26092075]
[1747263344904,1.0684964,103560.0,103550.0,0.26092075]
[1747263345206,1.15552093,103560.0,103550.0,0.26092075]
[1747263353114,1.15552093,103560.0,103550.0,0.23092075]
[1747263353312,1.24254546,103560.0,103550.0,0.19922075]
[1747263354912,1.0684964,103560.0,103550.0,0.19922075]
[1747263355114,1.24254546,103560.0,103550.0,0.19922075]
[1747263356116,1.24254546,103560.0,103550.0,0.03722075]
[1747263358511,1.60334546,103560.0,103550.0,0.03722075]
[1747263359935,0.88174546,103560.0,103550.0,0.03722075]
[1747263360126,1.60334546,103560.0,103550.0,0.03722075]
[1747263363235,1.60334546,103560.0,103550.0,0.19922075]
[1747263365239,0.88174546,103560.0,103550.0,0.19922075]
[1747263365440,1.60334546,103560.0,103550.0,0.19922075]
[1747263370841,0.88174546,103560.0,103550.0,0.19922075]
[1747263371040,1.60334546,103560.0,103550.0,0.19922075]
[1747263371239,1.51632093,103560.0,103550.0,0.19922075]
[1747263371428,1.2222564,103560.0,103550.0,0.22992075]
[1747263371634,1.10220093,103560.0,103550.0,0.26272075]
[1747263371834,1.51604093,103560.0,103550.0,0.26272075]
[1747263372227,1.10220093,103560.0,103550.0,0.26272075]
[1747263372426,1.51604093,103560.0,103550.0,0.26272075]
[1747263375550,0.79444093,103560.0,103550.0,0.26272075]
[1747263375738,1.15524093,103560.0,103550.0,0.26272075]
[1747263377152,1.0682164,103560.0,103550.0,0.26272075]
[1747263377337,1.15524093,103560.0,103550.0,0.26272075]
[1747263377544,1.15524093,103560.0,103550.0,0.25710004]
[1747263377742,1.0682164,103560.0,103550.0,0.25710004]
[1747263377943,1.15524093,103560.0,103550.0,0.25710004]
[1747263378538,1.15524093,103560.0,103550.0,0.26272075]
[1747263378738,0.79444093,103560.0,103550.0,0.26272075]
[1747263378938,1.15524093,103560.0,103550.0,0.26272075]
[1747263379559,1.15524093,103560.0,103550.0,0.25710004]
[1747263380551,1.15524093,103560.0,103550.0,0.26272075]
[1747263381852,0.79444093,103560.0,103550.0,0.26272075]
[1747263382051,1.15524093,103560.0,103550.0,0.26272075]
[1747263386657,1.15524093,103560.0,103550.0,0.25710004]
[1747263389556,0.79444093,103560.0,103550.0,0.25710004]
[1747263389851,1.15524093,103560.0,103550.0,0.26272075]
[1747263391754,1.15524093,103560.0,103550.0,0.25710004]
[1747263394256,1.51604093,103560.0,103550.0,0.25710004]
[1747263394757,1.51604093,103560.0,103550.0,0.26272075]
[1747263395759,1.51604093,103560.0,103550.0,0.25710004]
[1747263398866,1.51604093,103560.0,103550.0,0.26272075]
[1747263399860,1.51604093,103560.0,103550.0,0.25710004]
[1747263400463,1.60306546,103560.0,103550.0,0.25710004]
[1747263400863,1.60306546,103560.0,103550.0,0.26272075]
[1747263401352,1.51604093,103560.0,103550.0,0.26272075]
[1747263401553,1.60306546,103560.0,103550.0,0.26272075]
[1747263402260,1.4290164,103560.0,103550.0,0.26272075]
[1747263402451,1.51604093,103560.0,103550.0,0.26272075]
[1747263402860,1.51604093,103560.0,103550.0,0.25710004]
[1747263403566,1.4290164,103560.0,103550.0,0.25710004]
[1747263403857,1.51604093,103560.0,103550.0,0.25710004]
[1747263404161,1.51604093,103560.0,103550.0,0.26272075]
[1747263413075,1.51604093,103560.0,103550.0,0.25710004]
[1747263413767,0.79444093,103560.0,103550.0,0.25710004]
[1747263413972,1.51604093,103560.0,103550.0,0.25710004]
[1747263414264,1.51604093,103560.0,103550.0,0.26272075]
[1747263420872,1.60306546,103560.0,103550.0,0.22992075]
[1747263421061,1.60306546,103560.0,103550.0,0.19922075]
[1747263421259,1.60306546,103560.0,103550.0,0.03160004]
[1747263421470,1.4290164,103560.0,103550.0,0.03160004]
[1747263421671,1.60306546,103560.0,103550.0,0.03160004]
[1747263421972,1.51604093,103560.0,103550.0,0.03160004]
[1747263422173,1.51604093,103560.0,103550.0,0.06732075]
[1747263424873,1.15524093,103560.0,103550.0,0.06732075]
[1747263426173,1.15524093,103560.0,103550.0,0.22932075]
[1747263427680,0.74140093,103560.0,103550.0,0.22932075]
[1747263427883,1.15480093,103560.0,103550.0,0.26212075]
[1747263428085,0.74140093,103560.0,103550.0,0.26212075]
[1747263428269,0.94816093,103560.0,103550.0,0.26212075]
[1747263428469,1.15480093,103560.0,103550.0,0.26212075]
[1747263428878,0.38060093,103560.0,103550.0,0.26212075]
[1747263429077,0.76180093,103560.0,103550.0,0.55178289]
[1747263429279,0.6747764,103560.0,103550.0,0.55178289]
[1747263429580,0.76180093,103560.0,103550.0,0.55178289]
[1747263430180,0.73100093,103560.0,103550.0,0.55178289]
[1747263431975,0.73100093,103560.0,103550.0,0.35868779]
[1747263432978,0.73100093,103560.0,103550.0,0.55178289]
[1747263434682,0.31760093,103560.0,103550.0,0.55178289]
[1747263434871,0.4056364,103560.0,103550.0,0.55178289]
[1747263435071,0.1990764,103560.0,103550.0,0.55178289]
[1747263435272,0.4056364,103560.0,103550.0,0.55178289]
[1747263436083,0.4046364,103560.0,103550.0,0.55178289]
[1747263436381,0.4026364,103560.0,103550.0,0.55178289]
[1747263439084,0.52116093,103560.0,103550.0,0.55178289]
[1747263443289,0.4341364,103560.0,103550.0,0.55178289]
[1747263443588,0.52116093,103560.0,103550.0,0.91258289]
[1747263444184,0.4341364,103560.0,103550.0,0.91258289]
[1747263444394,0.52116093,103560.0,103550.0,0.91258289]
[1747263444888,0.003,103560.0,103550.0,0.99960742]
[1747263445074,0.4025564,103560.0,103550.0,0.99960742]
[1747263445682,0.4025564,103560.0,103550.0,0.91258289]
[1747263445881,0.4328564,103560.0,103550.0,0.91258289]
[1747263446694,0.2263764,103560.0,103550.0,0.91258289]
[1747263447597,0.1960764,103560.0,103550.0,0.91258289]
[1747263448487,0.2260764,103560.0,103550.0,0.91258289]
[1747263450989,0.033,103560.0,103550.0,0.99960742]
[1747263451195,0.003,103560.0,103550.0,1.09617542]
[1747263451693,0.003,103560.0,103550.0,1.55273542]
[1747263452782,0.003,103560.0,103550.0,3.05273542]
[1747263452989,0.002,103560.0,103550.0,3.05273542]
[1747263453187,0.3691564,103570.0,103560.0,0.1930764]
[1747263453392,0.3691564,103570.0,103560.0,0.73560093]
[1747263453895,0.3691564,103570.0,103560.0,0.83216797]
[1747263454097,0.3691564,103570.0,103560.0,0.99416797]
[1747263454286,0.3208901,103570.0,103560.0,0.99416797]
[1747263454684,0.3539901,103570.0,103560.0,0.99416797]
[1747263454884,0.3539901,103570.0,103560.0,0.90714344]
[1747263456883,0.3861901,103570.0,103560.0,0.90714344]
[1747263458303,0.3861901,103570.0,103560.0,2.40714344]
[1747263460596,0.3861901,103570.0,103560.0,2.49416797]
[1747263464203,0.47321463,103570.0,103560.0,2.37704344]
[1747263464403,0.47321463,103570.0,103560.0,2.01624344]
[1747263464793,0.47321463,103570.0,103560.0,0.51624344]
[1747263465186,0.47321463,103570.0,103560.0,2.01624344]
[1747263465390,0.47321463,103570.0,103560.0,0.51624344]
[1747263465790,0.47321463,103570.0,103560.0,0.48474344]
[1747263471105,0.47321463,103570.0,103560.0,0.49036415]
[1747263472096,0.47421463,103570.0,103560.0,0.49036415]
[1747263472607,0.47621463,103570.0,103560.0,0.49036415]
[1747263475703,0.3891901,103570.0,103560.0,0.52236415]
[1747263479495,0.3891901,103570.0,103560.0,0.55336415]
[1747263481601,0.47621463,103570.0,103560.0,0.55336415]
[1747263482011,0.47621463,103570.0,103560.0,0.52236415]
[1747263482207,0.47621463,103570.0,103560.0,0.29166704]
[1747263482604,0.47621463,103570.0,103560.0,0.48474344]
[1747263483113,0.47621463,103570.0,103560.0,0.32836415]
[1747263484312,0.68253463,103570.0,103560.0,0.32836415]
[1747263484910,0.68253463,103570.0,103560.0,0.36066415]
[1747263485215,0.68253463,103570.0,103560.0,0.55596415]
[1747263485512,0.5955101,103570.0,103560.0,0.55596415]
[1747263490401,0.68253463,103570.0,103560.0,0.55596415]
[1747263493723,0.68253463,103570.0,103560.0,0.52266415]
[1747263502523,0.68253463,103570.0,103560.0,0.55346415]
[1747263506126,0.68253463,103570.0,103560.0,0.52266415]
[1747263508123,0.68253463,103570.0,103560.0,0.36066415]
[1747263509126,0.68253463,103570.0,103560.0,0.52266415]
[1747263511123,0.68253463,103570.0,103560.0,0.67046735]
[1747263514129,1.04333463,103570.0,103560.0,0.67046735]
[1747263514326,1.04333463,103570.0,103560.0,0.47739095]
[1747263514831,1.04333463,103570.0,103560.0,0.44509095]
[1747263515222,1.04333463,103570.0,103560.0,0.47616735]
[1747263515423,1.04333463,103570.0,103560.0,0.28309095]
[1747263518034,1.04333463,103570.0,103560.0,0.13528775]
[1747263523028,1.04333463,103570.0,103560.0,0.32836415]
[1747263523227,1.04333463,103570.0,103560.0,0.36106415]
[1747263523634,1.04333463,103570.0,103560.0,0.16798775]
[1747263524139,1.04333463,103570.0,103560.0,0.32998775]
[1747263524436,0.68253463,103570.0,103560.0,0.52306415]
[1747263524632,1.04333463,103570.0,103560.0,0.55566415]
[1747263525031,0.68253463,103570.0,103560.0,0.55566415]
[1747263525236,0.5951101,103570.0,103560.0,1.00348868]
[1747263525932,0.5951101,103570.0,103560.0,0.91646415]
[1747263527750,0.5951101,103570.0,103560.0,0.55566415]
[1747263528745,0.3891901,103570.0,103560.0,0.55566415]
[1747263528945,0.5950701,103570.0,103560.0,0.55566415]
[1747263535437,0.68209463,103570.0,103560.0,0.55566415]
[1747263554262,0.5950701,103570.0,103560.0,0.55566415]
[1747263554464,0.88797463,103570.0,103560.0,0.55566415]
[1747263558165,0.88797463,103570.0,103560.0,0.70346735]
[1747263564669,1.24877463,103570.0,103560.0,0.51039095]
[1747263565668,1.24877463,103570.0,103560.0,0.70346735]
[1747263566770,0.88797463,103570.0,103560.0,0.70346735]
[1747263568069,0.8009501,103570.0,103560.0,0.70346735]
[1747263568659,0.88797463,103570.0,103560.0,0.70346735]
[1747263569169,0.88797463,103570.0,103560.0,0.55566415]
[1747263569771,0.8009501,103570.0,103560.0,0.55566415]
[1747263569955,0.88797463,103570.0,103560.0,0.55566415]
[1747263578767,0.8009501,103570.0,103560.0,0.55566415]
[1747263579066,0.88797463,103570.0,103560.0,0.55566415]
[1747263584379,1.24877463,103570.0,103560.0,0.55566415]
[1747263586175,0.88797463,103570.0,103560.0,0.55566415]
[1747263587280,1.1617501,103570.0,103560.0,0.55566415]
[1747263587480,1.24877463,103570.0,103560.0,0.55566415]
[1747263590569,0.88797463,103570.0,103560.0,0.55566415]
[1747263591977,1.24877463,103570.0,103560.0,0.55566415]
[1747263595785,0.88797463,103570.0,103560.0,0.55566415]
[1747263595975,1.24877463,103570.0,103560.0,0.55566415]
[1747263596393,0.88797463,103570.0,103560.0,0.55566415]
[1747263597483,1.24877463,103570.0,103560.0,0.55566415]
[1747263599188,0.88797463,103570.0,103560.0,0.55566415]
[1747263599386,1.24877463,103570.0,103560.0,0.55566415]
[1747263601190,0.88797463,103570.0,103560.0,0.55566415]
[1747263601791,1.24877463,103570.0,103560.0,0.55566415]
[1747263603893,1.24877463,103570.0,103560.0,0.36258775]
[1747263604094,1.24877463,103570.0,103560.0,0.55566415]
[1747263604390,0.88797463,103570.0,103560.0,0.55566415]
[1747263604690,1.24877463,103570.0,103560.0,0.55566415]
[1747263605783,0.83701463,103570.0,103560.0,0.55566415]
[1747263605981,0.1930764,103560.0,103550.0,0.34487417]
[1747263606192,0.90964999,103560.0,103550.0,0.17404498]
[1747263606396,1.00621799,103560.0,103550.0,0.17404498]
[1747263606585,0.92119346,103560.0,103550.0,0.17404498]
[1747263607093,1.08319346,103560.0,103550.0,0.17404498]
[1747263607490,0.98662546,103560.0,103550.0,0.17404498]
[1747263607690,1.08319346,103560.0,103550.0,0.17404498]
[1747263608286,0.1930951,103550.0,103540.0,0.1478032]
[1747263608486,1.11541963,103550.0,103540.0,0.1478032]
[1747263610690,0.70461963,103550.0,103540.0,0.1784032]
[1747263610896,1.11841963,103550.0,103540.0,0.1784032]
[1747263611097,0.70761963,103550.0,103540.0,0.5335169]
[1747263611390,1.12141963,103550.0,103540.0,0.3404032]
[1747263611895,1.12141963,103550.0,103540.0,0.1926]
[1747263612297,1.12141963,103550.0,103540.0,0.0306]
[1747263613999,0.1931324,103530.0,103520.0,0.272224]
[1747263614199,0.28015693,103530.0,103520.0,0.334724]
[1747263614402,0.34385693,103530.0,103520.0,0.43130036]
[1747263615100,0.34385693,103530.0,103520.0,0.59330036]
[1747263615298,0.37675693,103530.0,103520.0,0.59330036]
[1747263616704,0.58207693,103530.0,103520.0,0.59330036]
[1747263619003,0.4950524,103530.0,103520.0,0.59330036]
[1747263619205,0.58207693,103530.0,103520.0,0.59330036]
[1747263619593,0.54917693,103530.0,103520.0,0.59330036]
[1747263619794,0.54917693,103530.0,103520.0,0.95410036]
[1747263620093,0.3984524,103530.0,103520.0,1.04112489]
[1747263620294,0.1931324,103530.0,103520.0,1.06145863]
[1747263621708,0.1931324,103530.0,103520.0,1.0467456]
[1747263625496,0.1931324,103530.0,103520.0,1.06094124]
[1747263632112,0.1931324,103530.0,103520.0,0.70014124]
[1747263632312,0.1931324,103530.0,103520.0,1.06094124]
[1747263636817,0.1931324,103530.0,103520.0,1.20874444]
[1747263642128,0.2031324,103530.0,103520.0,1.20874444]
[1747263644635,0.2354324,103530.0,103520.0,1.20874444]
[1747263645537,0.2354324,103530.0,103520.0,1.12171991]
[1747263645737,0.2679324,103530.0,103520.0,1.12171991]
[1747263647939,0.2991324,103530.0,103520.0,1.12171991]
[1747263654444,0.2891324,103530.0,103520.0,1.12171991]
[1747263655529,0.2891324,103530.0,103520.0,1.20874444]
[1747263663444,0.2891324,103530.0,103520.0,1.12171991]
[1747263663645,0.37615693,103530.0,103520.0,0.65023221]
[1747263664240,0.37615693,103530.0,103520.0,0.48823221]
[1747263665551,0.2891324,103530.0,103520.0,0.48823221]
[1747263666149,0.2891324,103530.0,103520.0,0.65023221]
[1747263668251,0.2891324,103530.0,103520.0,0.79985674]
[1747263670457,0.2891324,103530.0,103520.0,0.7856611]
[1747263670640,0.2891324,103530.0,103520.0,1.1464611]
[1747263673458,0.2891324,103530.0,103520.0,1.02763657]
[1747263673661,0.2891324,103530.0,103520.0,1.1146611]
[1747263673858,0.2891324,103530.0,103520.0,0.63603657]
[1747263674160,0.2891324,103530.0,103520.0,0.47403657]
[1747263674461,0.30337304,103530.0,103520.0,0.47403657]
[1747263676548,0.59551757,103530.0,103520.0,0.28090027]
[1747263678763,0.59551757,103530.0,103520.0,0.47405127]
[1747263681562,0.59551757,103530.0,103520.0,0.32624807]
[1747263681963,0.59551757,103530.0,103520.0,0.13309707]
[1747263682262,0.59551757,103530.0,103520.0,0.32624807]
[1747263683253,0.59551757,103530.0,103520.0,0.00562071]
[1747263683254,0.7791381,103530.0,103520.0,0.00562071]
[1747263683466,0.69211357,103530.0,103520.0,0.00562071]
[1747263683862,0.89699357,103530.0,103520.0,0.00562071]
[1747263684458,0.80039757,103530.0,103520.0,0.00562071]
[1747263687664,0.59539757,103530.0,103520.0,0.00562071]
[1747263687866,0.80039757,103530.0,103520.0,0.00562071]
[1747263689468,0.80039757,103530.0,103520.0,0.03722071]
[1747263689766,0.39039757,103530.0,103520.0,0.03722071]
[1747263689968,0.80039757,103530.0,103520.0,0.03722071]
[1747263690966,0.39039757,103530.0,103520.0,0.03722071]
[1747263691164,0.80039757,103530.0,103520.0,0.23037171]
[1747263691358,0.39039757,103530.0,103520.0,0.06912071]
[1747263691564,0.80039757,103530.0,103520.0,0.06912071]
[1747263692169,0.80039757,103530.0,103520.0,0.23112071]
[1747263693071,0.80039757,103530.0,103520.0,0.42427171]
[1747263693271,0.50837304,103530.0,103520.0,0.42427171]
[1747263693474,0.71337304,103530.0,103520.0,0.45617171]
[1747263694364,0.71337304,103530.0,103520.0,0.26302071]
[1747263694761,0.80039757,103530.0,103520.0,0.26302071]
[1747263695767,0.80039757,103530.0,103520.0,0.23112071]